[Event "44th Chess Olympiad Open 2022"]
[Site "Chennai"]
[Date "2022.08.03"]
[Round "6.17"]
[White "Banusz, Tamas"]
[Black "Draskovic, Luka"]
[Result "1-0"]
[WhiteElo "2611"]
[BlackElo "2503"]
[Annotator "TA"]
[PlyCount "113"]
[EventDate "2022.??.??"]
[TimeControl "60"]

{[%evp 18,113,23,17,27,18,17,22,20,21,20,17,23,14,27,0,27,26,28,26,35,37,37,29,
33,37,51,33,35,33,33,26,54,54,56,47,56,47,47,18,56,46,53,59,52,57,92,100,100,
100,100,96,100,100,106,68,79,0,0,0,0,0,88,67,171,173,172,155,140,127,337,337,
337,309,299,154,225,225,145,139,1056,979,720,629,6713,3033,2854,2329,12839,
12837,12840,12839,12841,12841,12841,12841,12842,12842]} 1. Nf3 {[%emt 0:00:03]}
Nf6 {[%emt 0:00:18]} 2. g3 {[%emt 0:00:07]} g6 {[%emt 0:00:46]} 3. Bg2 {
[%emt 0:00:07]} Bg7 {[%emt 0:00:18]} 4. c4 {[%emt 0:00:10]} d6 {[%emt 0:00:42]}
5. Nc3 {[%emt 0:01:04]} O-O {[%emt 0:00:52]} 6. d4 {[%emt 0:00:07]} Nc6 {
[%emt 0:01:02]} 7. O-O {[%emt 0:00:12]} e5 {[%emt 0:00:28]} 8. h3 {[%emt 0:00:
00]} Nxd4 {[%emt 0:03:14]} 9. Nxd4 {[%emt 0:00:16]} exd4 {[%emt 0:00:05]} 10.
Qxd4 {[%emt 0:00:08]} Be6 {[%emt 0:01:23][%cal Yf6d5] E62: King's Indian:
Fianchetto: 6...c6 and Panno Variation (6...Nc6) without ...a6.} 11. Qh4 {
[%emt 0:00:34]} (11. Bxb7 Nd7 $1 12. Qd2 Bxh3 $15) 11... Nh5 {[%emt 0:02:04]}
12. Bg5 {[%emt 0:00:29] [#]} ({Much weaker is} 12. Bxb7 Qxh4 13. gxh4 Rab8 $17)
12... f6 $146 {[%emt 0:03:55] The position is equal.} ({Predecessor:} 12... Bf6
13. Bxf6 Qxf6 14. Qxf6 Nxf6 15. b3 Rab8 16. Nb5 Ne8 17. Rfd1 a6 18. Nd4 Ng7 19.
Rd3 Nf5 20. e4 Kg7 21. h4 h6 22. g4 {1-0 (22) Erdos,V (2586)-Gomez Barrera,J 
(2210) Biel 2022}) 13. Bd2 {[%emt 0:01:26]} f5 {[%emt 0:01:42]} 14. Qxd8 {
[%emt 0:00:50]} ({Avoid the trap} 14. Bxb7 $2 Bf6 15. Bg5 Bxg5 $19) 14... Raxd8
{[%emt 0:09:24]} 15. b3 {[%emt 0:05:25]} c6 {[%emt 0:00:35]} 16. Rfd1 {[%emt 0:
00:00]} Nf6 {[%emt 0:08:16]} 17. Rac1 {[%emt 0:02:53]} d5 {[%emt 0:14:11]} 18.
cxd5 {[%emt 0:02:39]} Nxd5 {[%emt 0:00:17]} 19. Nxd5 {[%emt 0:04:27]} Bxd5 {
[%emt 0:01:37]} 20. Bb4 {[%emt 0:08:34]} Rfe8 {[%emt 0:06:08]} 21. Bxd5+ {
[%emt 0:00:12]} cxd5 {[%emt 0:00:40]} 22. Kf1 {[%emt 0:01:19] Threatens to win
with Rc7.} Rd7 {[%emt 0:01:04] Inhibits Rc7.} 23. Bc5 {[%emt 0:04:45]} a6 {
[%emt 0:07:28]} 24. Bd4 {[%emt 0:04:57]} Bxd4 {[%emt 0:03:22]} 25. Rxd4 $11 {
[%emt 0:00:05] Endgame KRR-KRR} Re4 {[%emt 0:00:14]} 26. Rd2 {[%emt 0:09:52]}
Kf7 {[%emt 0:00:16]} 27. Rc5 {[%emt 0:00:45]} Ke6 {[%emt 0:00:00]} 28. f3 {
[%emt 0:00:37]} Re5 {[%emt 0:03:41]} 29. Rd4 {[%emt 0:01:46]} Kd6 {[%emt 0:03:
56]} 30. Ra5 {[%emt 0:01:51]} Kc6 {[%emt 0:06:38]} 31. Kf2 {[%emt 0:04:15]} Re6
{[%emt 0:02:56]} 32. b4 $1 {[%emt 0:06:55]} Red6 {[%emt 0:00:00]} 33. Rc5+ {
[%emt 0:08:42]} Kb6 {[%emt 0:00:05]} 34. a4 {[%emt 0:03:11][%cal Ya2a4,Ya4a5]
White is more active.} Ka7 {[%emt 0:03:12]} 35. a5 {[%emt 0:04:38]} b6 {
[%emt 0:00:48]} 36. Rc2 {[%emt 0:00:21]} Kb7 {[%emt 0:00:00]} 37. h4 {[%emt 0:
03:08]} (37. Rcd2 $16) 37... Rc7 {[%emt 0:02:15]} 38. Rxc7+ {[%emt 0:04:30]}
Kxc7 {[%emt 0:00:04] KR-KR} 39. Ke3 {[%emt 0:00:07]} bxa5 {[%emt 0:09:07]} (
39... Kc6 $11 {keeps the balance.}) 40. bxa5 $16 {[%emt 0:00:01]} Kc6 {[%emt 0:
00:18]} (40... Re6+ $14 41. Kd3 Kc6) 41. Rb4 $1 $18 {[%emt 0:16:35]} Kc5 {
[%emt 0:00:25]} 42. Rb7 {[%emt 0:02:58]} Re6+ {[%emt 0:07:26]} 43. Kd3 {
[%emt 0:00:22]} h5 {[%emt 0:00:10] [#]} (43... h6 $16 {might work better.}) 44.
e3 $1 {[%emt 0:01:57]} Rc6 {[%emt 0:01:04]} 45. Rb3 {[%emt 0:02:49]} Re6 {
[%emt 0:02:05] [#]} 46. Rc3+ {[%emt 0:02:31]} ({White has to play} 46. Rb1 $1
$18 {aiming for Rb2.} Rf6 47. Rc1+ Kb4 48. Kd4) 46... Kb5 {[%emt 0:01:53]} (
46... Kb4 $16 {was worth a try.} 47. Kd4 Kxa5) 47. Kd4 {[%emt 0:00:15]} Kxa5 {
[%emt 0:01:24]} 48. Kxd5 {[%emt 0:00:02]} Kb4 $2 {[%emt 0:05:48] A mistake
that costs the game.} (48... Re8 $16) 49. Rc4+ {[%emt 0:02:53] White is
clearly winning.} ({Weaker is} 49. Kxe6 Kxc3 50. e4 fxe4 51. fxe4 a5 $18) 49...
Kb3 {[%emt 0:01:00]} 50. e4 {[%emt 0:00:59] And now Rc8 would win.} fxe4 {
[%emt 0:02:38]} 51. fxe4 {[%emt 0:00:03][%cal Yf3e4,Ye4e5,Ye5e6,Ye6e7]} Re8 {
[%emt 0:02:31]} 52. Rc6 {[%emt 0:02:21][%csl Ya6,Yg6]} Ra8 {[%emt 0:03:47]} 53.
e5 {[%emt 0:00:58]} a5 {[%emt 0:00:28]} 54. e6 {[%emt 0:00:19]} a4 {[%emt 0:01:
05]} 55. e7 {[%emt 0:00:40]} a3 {[%emt 0:00:27]} 56. Rc1 {[%emt 0:02:16]} Kb2 {
[%emt 0:01:43]} 57. Re1 {[%emt 0:00:00] Weighted Error Value: White=0.10 (very
precise) /Black=0.21 (precise)} 1-0

[Event "44th Chess Olympiad Open 2022"]
[Site "Chennai"]
[Date "2022.08.03"]
[Round "6.17"]
[White "Erdos, Viktor"]
[Black "Kadric, Denis"]
[Result "1/2-1/2"]
[WhiteElo "2586"]
[BlackElo "2554"]
[Annotator "TA"]
[PlyCount "60"]
[EventDate "2022.??.??"]
[TimeControl "60"]

{[%evp 12,60,11,9,14,6,6,6,7,12,4,8,8,16,9,8,14,1,4,5,0,0,6,11,13,4,0,0,0,0,0,
0,0,-19,0,0,0,0,0,0,0,0,0,0,0,-5,0,0,0,0,0]} 1. e4 {[%emt 0:00:05]} e5 {
[%emt 0:00:06]} 2. Nf3 {[%emt 0:00:10]} Nf6 {[%emt 0:00:02]} 3. Nxe5 {[%emt 0:
00:00]} d6 {[%emt 0:00:04]} 4. Nf3 {[%emt 0:00:06]} Nxe4 {[%emt 0:00:02]} 5. c4
{[%emt 0:00:15]} Nc6 {[%emt 0:00:07]} 6. Nc3 {[%emt 0:00:07]} Nxc3 {[%emt 0:00:
00]} 7. dxc3 {[%emt 0:00:06] The position is equal.} g6 $1 {[%emt 0:01:14] now
scores much better than the old 7...Be7. C42: Petroff Defence: 3 Nxe5 and
unusual White 3rd moves.} 8. Bg5 {[%emt 0:06:52]} Be7 {[%emt 0:01:09]} 9. Bh6 {
[%emt 0:00:06]} Bf8 {[%emt 0:02:14]} 10. Be3 {[%emt 0:03:02]} Qe7 {[%emt 0:11:
20]} 11. Be2 {[%emt 0:11:21]} Bg7 {[%emt 0:00:28]} 12. O-O {[%emt 0:00:00]} O-O
{[%emt 0:00:04]} 13. Re1 {[%emt 0:00:08] [#]} Re8 $146 {[%emt 0:00:00]} ({
Predecessor:} 13... Bf5 14. c5 dxc5 15. Bf4 Nd8 16. Bg5 {½-½ (14) Tilicheev,
V-Simeonov,L (2279) ICCF email 2017}) 14. Bf1 {[%emt 0:05:15]} Qf8 {[%emt 0:01:
31]} 15. Nd4 {[%emt 0:01:51]} Nxd4 {[%emt 0:01:31]} 16. cxd4 {[%emt 0:00:18]}
Bf5 {[%emt 0:11:33]} 17. Qd2 {[%emt 0:04:12]} b6 {[%emt 0:00:00]} 18. Rac1 {
[%emt 0:06:54]} h5 {[%emt 0:01:33]} 19. Bd3 {[%emt 0:08:37]} Bxd3 {[%emt 0:00:
42]} 20. Qxd3 {[%emt 0:00:02]} Re6 {[%emt 0:02:13]} 21. Bd2 {[%emt 0:09:26]}
Rae8 {[%emt 0:00:33]} 22. Kf1 {[%emt 0:00:09]} Bh6 {[%emt 0:00:00]} 23. b3 {
[%emt 0:00:50]} Bxd2 {[%emt 0:00:58]} 24. Qxd2 {[%emt 0:00:03]} Qg7 {[%emt 0:
00:07]} 25. Rxe6 {[%emt 0:00:59]} Rxe6 {[%emt 0:00:01]} 26. Re1 {[%emt 0:00:06]
} Rxe1+ {[%emt 0:00:02]} 27. Kxe1 $11 {[%emt 0:00:03] KQ-KQ} Qf6 {[%emt 0:00:
20]} 28. f3 {[%emt 0:00:41]} a5 {[%emt 0:00:18]} 29. Kf2 {[%emt 0:00:00]} c5 {
[%emt 0:00:41]} 30. dxc5 {[%emt 0:00:05]} dxc5 {[%emt 0:00:02] An even fight
not without its subleties. Weighted Error Value: White=0.02 (flawless) /
Black=0.01 (flawless)} 1/2-1/2

[Event "44th Chess Olympiad Open 2022"]
[Site "Chennai"]
[Date "2022.08.03"]
[Round "6.17"]
[White "Djukic, Nikola"]
[Black "Berkes, Ferenc"]
[Result "1/2-1/2"]
[WhiteElo "2526"]
[BlackElo "2649"]
[Annotator "TA"]
[PlyCount "60"]
[EventDate "2022.??.??"]
[TimeControl "60"]

{[%evp 15,60,15,20,17,22,22,18,0,34,25,28,25,32,37,29,13,38,27,27,0,21,0,0,0,0,
0,0,0,0,0,0,0,46,38,43,0,0,0,0,0,0,0,0,0,0,0,0]} 1. e4 {[%emt 0:00:02]} e5 {
[%emt 0:00:06]} 2. Nf3 {[%emt 0:00:07]} Nc6 {[%emt 0:00:05]} 3. Bb5 {[%emt 0:
00:00]} a6 {[%emt 0:00:05]} 4. Ba4 {[%emt 0:00:05]} Nf6 {[%emt 0:00:07]} 5. O-O
{[%emt 0:00:07]} Be7 {[%emt 0:00:05]} 6. d3 {[%emt 0:00:06]} b5 {[%emt 0:00:12]
[%cal Yb7b5,Yb5b4]} 7. Bb3 {[%emt 0:00:07]} d6 {[%emt 0:00:27]} 8. c3 {[%emt 0:
00:19]} O-O {[%emt 0:00:30]} 9. a4 {[%emt 0:00:35] 9.h3 is a critical line.
C84: Closed Ruy Lopez: Unusual White 6th moves.} b4 {[%emt 0:05:52]} 10. a5 {
[%emt 0:00:55]} Rb8 {[%emt 0:00:52]} 11. Nbd2 {[%emt 0:01:00]} h6 {[%emt 0:00:
00]} 12. Nc4 {[%emt 0:03:33] [#]} Re8 $146 {[%emt 0:02:11]} ({Predecessor:} 
12... bxc3 13. bxc3 Be6 14. Qc2 Nd7 15. Be3 d5 16. Ncd2 Nc5 17. Bxc5 Bxc5 18.
Rfe1 dxe4 19. dxe4 {0-1 (40) Safarli,E (2660)-Inarkiev,E (2680)
Khanty-Mansiysk 2013}) 13. Bd2 {[%emt 0:09:02]} bxc3 {[%emt 0:10:15]} 14. bxc3
{[%emt 0:00:08]} Bf8 {[%emt 0:00:08]} 15. Re1 {[%emt 0:14:57]} Bd7 {[%emt 0:00:
00]} 16. Qc2 {[%emt 0:07:31]} Qc8 {[%emt 0:03:35]} 17. Ba4 {[%emt 0:05:35]} Ne7
{[%emt 0:08:18]} 18. d4 {[%emt 0:14:07]} Bxa4 {[%emt 0:01:51]} 19. Qxa4 {
[%emt 0:00:59]} exd4 {[%emt 0:05:17]} 20. cxd4 {[%emt 0:00:39]} d5 {[%emt 0:00:
00]} 21. exd5 {[%emt 0:06:30]} Nexd5 {[%emt 0:00:07]} 22. Nce5 {[%emt 0:04:25]}
Rb2 {[%emt 0:06:05]} 23. Rab1 {[%emt 0:04:41]} Qb7 {[%emt 0:02:11]} (23... Rxb1
$11 24. Rxb1 c5) 24. Rxb2 $1 $14 {[%emt 0:02:08]} Qxb2 {[%emt 0:01:42]} 25. Rc1
{[%emt 0:03:01]} (25. Qc4 $5 {[%cal Rc4a6]}) 25... Rb8 {[%emt 0:08:09] The
position is equal.} 26. Qc6 {[%emt 0:03:48]} Qb5 {[%emt 0:01:07]} 27. Qc2 {
[%emt 0:06:51]} Qb3 {[%emt 0:05:30]} 28. Qc6 {[%emt 0:00:58]} Qb5 {[%emt 0:00:
00]} 29. Qc2 {[%emt 0:00:06]} Qb3 {[%emt 0:00:04]} 30. Qc6 {[%emt 0:00:08]} Qb5
{[%emt 0:00:27] Weighted Error Value: White=0.07 (flawless) /Black=0.05 
(flawless)} 1/2-1/2

[Event "44th Chess Olympiad Open 2022"]
[Site "Chennai"]
[Date "2022.08.03"]
[Round "6.17"]
[White "Blagojevic, Dragisa"]
[Black "Acs, Peter"]
[Result "1/2-1/2"]
[WhiteElo "2499"]
[BlackElo "2575"]
[Annotator "TA"]
[PlyCount "38"]
[EventDate "2022.??.??"]
[TimeControl "60"]

{[%evp 24,38,0,0,5,0,32,0,14,0,22,0,22,0,28,0,16]} 1. d4 {[%emt 0:00:03]} d5 {
[%emt 0:00:12]} 2. c4 {[%emt 0:00:06]} c6 {[%emt 0:00:08]} 3. Nc3 {[%emt 0:00:
00]} Nf6 {[%emt 0:00:09]} 4. e3 {[%emt 0:00:14]} e6 {[%emt 0:00:32]} 5. Nf3 {
[%emt 0:00:11]} Nbd7 {[%emt 0:00:39]} 6. Qc2 {[%emt 0:00:24]} Bd6 {[%emt 0:00:
00]} 7. b3 {[%emt 0:00:37]} O-O {[%emt 0:00:55]} 8. Be2 {[%emt 0:00:10]} b6 {
[%emt 0:01:01]} 9. O-O {[%emt 0:03:41]} Bb7 {[%emt 0:00:16]} 10. Bb2 {[%emt 0:
00:00]} Qe7 {[%emt 0:02:42]} 11. e4 {[%emt 0:02:57]} Nxe4 {[%emt 0:11:43]} 12.
Nxe4 {[%emt 0:00:07]} dxe4 {[%emt 0:00:06]} 13. Qxe4 {[%emt 0:00:11]} Ba3 $5 {
[%emt 0:06:43] Exploring less charted territory. D45: Semi-Slav: 5 e3.} 14. Bc3
{[%emt 0:07:55]} Bb4 {[%emt 0:09:51] [#]} 15. Bb2 $146 {[%emt 0:07:09]} ({
Predecessor:} 15. Bxb4 Qxb4 16. Ne5 Nf6 17. Qf3 Qd6 18. Rfd1 Rad8 19. Rac1 Qc7
20. c5 bxc5 21. Rxc5 Nd7 22. Nxd7 Rxd7 23. Qe3 Rfd8 24. Bf3 Rd6 {1-0 (24)
Sokolin,L (2435)-Sorokin,M (2550) Moscow 1992}) 15... Ba3 {[%emt 0:02:33]} 16.
Bc3 {[%emt 0:02:20]} Bb4 {[%emt 0:07:51]} 17. Bb2 {[%emt 0:00:33]} Ba3 {
[%emt 0:06:18]} 18. Bc3 {[%emt 0:00:34]} Bb4 {[%emt 0:01:44]} 19. Bb2 {[%emt 0:
00:00]} Ba3 {[%emt 0:01:38] Not much happened in this game. Weighted Error
Value: White=0.20 (precise) /Black=0.05 (flawless)} 1/2-1/2

[Event "44th Chess Olympiad Open 2022"]
[Site "Chennai"]
[Date "2022.08.03"]
[Round "6.18"]
[White "Deac, Bogdan-Daniel"]
[Black "Hansen, Eric"]
[Result "1-0"]
[WhiteElo "2692"]
[BlackElo "2606"]
[Annotator "TA"]
[PlyCount "59"]
[EventDate "2022.??.??"]
[TimeControl "60"]

{[%evp 11,59,10,15,14,27,22,41,22,29,33,33,19,40,7,15,25,22,22,54,60,47,53,47,
67,69,64,58,52,85,77,99,98,91,54,63,56,53,51,72,66,425,415,1203,1196,1181,1175,
29969,7037,29991,29992]} 1. d4 {[%emt 0:00:03]} Nf6 {[%emt 0:00:14]} 2. c4 {
[%emt 0:00:03]} e6 {[%emt 0:00:06]} 3. Nc3 {[%emt 0:00:19]} d5 {[%emt 0:01:57]}
4. Nf3 {[%emt 0:00:23]} c5 {[%emt 0:03:54]} 5. e3 {[%emt 0:00:47]} a6 {[%emt 0:
00:00]} 6. cxd5 {[%emt 0:21:02]} exd5 {[%emt 0:09:01]} 7. g3 {[%emt 0:00:21]
D40: Queen's Gambit Declined: Semi-Tarrasch with 5 e3.} Nc6 {[%emt 0:01:17]} 8.
Bg2 {[%emt 0:00:39]} Bd6 {[%emt 0:10:53]} 9. O-O {[%emt 0:03:41] White is
slightly better.} O-O {[%emt 0:03:12]} 10. b3 {[%emt 0:06:56]} cxd4 {[%emt 0:
00:00]} 11. Nxd4 {[%emt 0:03:55] [#]} Bg4 $146 {[%emt 0:00:06]} ({Predecessor:
} 11... Be5 12. Nxc6 bxc6 13. Bb2 Bb7 14. Qc2 Rc8 15. Rfd1 Nd7 16. Na4 Qf6 17.
Rac1 Bxb2 18. Qxb2 Qxb2 19. Nxb2 {1-0 (39) Ringoir,T (2527)-Arribas Lopez,A 
(2480) Charlotte 2018}) 12. Qd2 {[%emt 0:07:56]} Nxd4 {[%emt 0:04:40]} 13. Qxd4
{[%emt 0:01:27]} Re8 $1 {[%emt 0:02:18]} 14. Nxd5 {[%emt 0:01:53]} Be5 {
[%emt 0:00:57]} 15. Nxf6+ {[%emt 0:00:14]} Qxf6 {[%emt 0:00:03] [#]} 16. Qxg4 {
[%emt 0:00:14] And now Rb1 would win.} Bxa1 {[%emt 0:00:04]} 17. Bxb7 {[%emt 0:
00:00]} Ra7 {[%emt 0:01:06]} 18. Bd5 {[%emt 0:02:11]} Bb2 {[%emt 0:00:08]} 19.
Qa4 {[%emt 0:10:11][%cal Ra4e8]} Rd8 {[%emt 0:07:32]} 20. e4 {[%emt 0:15:11]}
Bxc1 {[%emt 0:00:47]} 21. Rxc1 {[%emt 0:00:06][%cal Yf1c1,Yc1c7,Yc7c8,Yc8g8]}
g6 {[%emt 0:03:14]} 22. Qa5 {[%emt 0:07:07]} Kg7 {[%emt 0:01:34]} 23. Kg2 {
[%emt 0:04:52]} Rd6 {[%emt 0:01:51]} 24. Rc7 {[%emt 0:04:22]} Rd7 {[%emt 0:02:
09]} (24... Rxc7 $2 25. Qxc7 Kh6 26. h4 $18 (26. Qxf7 Qxf7 27. Bxf7 Rd2 $14))
25. Rc8 {[%emt 0:01:50] White is more active.} Qe5 $2 {[%emt 0:08:38] [#] This
costs Black the game.} (25... Rd6 $14) 26. Rg8+ $1 $18 {[%emt 0:01:14]} Kf6 {
[%emt 0:00:23]} (26... Kxg8 $142 27. Bxf7+ Rxf7 28. Qxe5 Rac7) 27. Qb6+ {
[%emt 0:01:18]} Ke7 {[%emt 0:00:30]} 28. Qc5+ {[%emt 0:01:19]} Kf6 {[%emt 0:03:
20]} 29. f4 {[%emt 0:00:29]} Qb2+ {[%emt 0:00:32]} 30. Kf3 {[%emt 0:00:24]
Weighted Error Value: White=0.06 (flawless) /Black=0.86} 1-0

[Event "44th Chess Olympiad Open 2022"]
[Site "Chennai"]
[Date "2022.08.03"]
[Round "6.18"]
[White "Parligras, Mircea-Emilian"]
[Black "Noritsyn, Nikolay"]
[Result "0-1"]
[WhiteElo "2576"]
[BlackElo "2482"]
[Annotator "TA"]
[PlyCount "98"]
[EventDate "2022.??.??"]
[TimeControl "60"]

{[%evp 9,98,40,41,33,31,19,33,23,20,21,25,0,0,-9,12,16,21,16,15,0,0,0,0,0,0,9,
5,7,13,-4,2,-54,-58,-51,-43,-104,-93,-100,-97,-87,-92,-119,-119,-166,-166,-164,
-180,-569,-546,-116,-120,-122,-92,-91,-79,-119,-118,-109,-61,-72,-48,-77,-67,
-59,-68,-68,-57,-165,-141,-139,-105,-110,0,-150,-137,-296,-296,-519,-498,-647,
-462,-1195,-1226,-29978,-29979,-29980,-29981,-29981,-29971,-29975,-29977]} 1.
d4 {[%emt 0:00:03]} d5 {[%emt 0:00:11]} 2. c4 {[%emt 0:00:11]} dxc4 {[%emt 0:
00:00]} 3. e3 {[%emt 0:00:31]} e5 {[%emt 0:00:17]} 4. Bxc4 {[%emt 0:00:14]} Nc6
{[%emt 0:00:26]} 5. Nf3 {[%emt 0:02:32]} e4 {[%emt 0:00:14]} 6. Nfd2 {[%emt 0:
00:00] D20: Queen's Gambit Accepted: 3 e3 and 3 e4.} Qg5 {[%emt 0:00:13]} 7.
Nxe4 {[%emt 0:00:56] The main line 7.Nxe4 scores better than 7.g3.} Qxg2 {
[%emt 0:00:13]} 8. Ng3 {[%emt 0:00:08] White is slightly better.} Qh3 {[%emt 0:
00:00]} 9. Nc3 {[%emt 0:02:02]} Bd6 {[%emt 0:00:24] [#]} 10. Bf1 $146 {[%emt 0:
00:00]} ({Predecessor:} 10. Qf3 Nh6 11. Bf1 Qh4 12. Qe4+ Qxe4 13. Ngxe4 Be7 14.
Nd5 O-O 15. Bg2 Bd8 16. Bd2 {1-0 (58) Andreikin,D (2728)-Alekseenko,K (2693)
Yasnaya Polyana 2021}) 10... Qh4 {[%emt 0:00:43]} 11. Bg2 {[%emt 0:00:27]} Nh6
{[%emt 0:12:09]} (11... Bh3 $5 {[%cal Rh3g2]} 12. Qf3 Bxg2 13. Qxg2 Nge7 $11)
12. Nb5 {[%emt 0:23:24]} Bh3 {[%emt 0:13:01]} 13. Nxd6+ {[%emt 0:02:31]} cxd6 {
[%emt 0:00:05]} 14. Qh5 {[%emt 0:05:46]} Qxh5 {[%emt 0:01:13]} 15. Bxc6+ {
[%emt 0:00:06]} bxc6 {[%emt 0:00:13]} 16. Nxh5 {[%emt 0:00:04]} g6 {[%emt 0:00:
00]} 17. Nf4 {[%emt 0:00:40]} Bg4 {[%emt 0:06:24][%cal Yh3g4,Yg4f3,Yf3e4]} 18.
Rg1 {[%emt 0:01:44]} f6 {[%emt 0:13:01]} 19. Bd2 {[%emt 0:01:51]} g5 {[%emt 0:
07:28]} 20. Nd3 {[%emt 0:04:35]} ({White should play} 20. Ne2 $1 $11) 20... Bf3
$15 {[%emt 0:00:31]} 21. Rg3 {[%emt 0:08:06]} g4 {[%emt 0:02:14]} 22. Bc3 {
[%emt 0:08:35]} (22. e4 $15 Nf7 23. Kf1) 22... Nf5 {[%emt 0:01:11]} 23. Rg1 {
[%emt 0:00:06]} Kf7 {[%emt 0:01:19]} 24. Kd2 {[%emt 0:00:48]} h5 {[%emt 0:00:
00][%cal Yh7h5,Yh5h4]} 25. b4 {[%emt 0:05:26]} Be4 {[%emt 0:01:15]} 26. Rgc1 {
[%emt 0:10:20]} (26. Ke2 $17) 26... h4 $19 {[%emt 0:01:27]} 27. Ke2 {[%emt 0:
04:34] [#]} Rae8 $1 {[%emt 0:01:52]} 28. Bd2 $2 {[%emt 0:04:30]} (28. Nf4 {
is more resistant.}) 28... Bf3+ {[%emt 0:03:15]} 29. Kf1 {[%emt 0:00:13]} g3 {
[%emt 0:06:23]} 30. h3 {[%emt 0:00:10]} Rhg8 {[%emt 0:00:22][%cal Yf3e2]
Threatens to win with ...Be2+!} 31. Nf4 {[%emt 0:00:32] Inhibits Be2+.} Be4 {
[%emt 0:01:37] Black is much more active.} 32. Be1 {[%emt 0:03:59]} Ne7 {
[%emt 0:04:32]} 33. b5 {[%emt 0:12:38]} Rb8 {[%emt 0:09:55]} (33... g2+ $6 34.
Kg1 $11) (33... cxb5 $17 34. Rc7 Rc8) 34. a4 {[%emt 0:00:00]} Rb7 {[%emt 0:00:
00]} 35. Ra3 {[%emt 0:00:00]} cxb5 {[%emt 0:01:09]} 36. axb5 {[%emt 0:00:00]}
Nd5 {[%emt 0:00:22]} (36... Rxb5 37. Rxa7 g2+ 38. Kg1 $11) 37. Nxd5 {[%emt 0:
00:00]} Bxd5 {[%emt 0:00:28]} 38. Ra6 {[%emt 0:00:00]} ({Better is} 38. e4 $1
$15 Bxe4 39. fxg3) 38... Ke6 {[%emt 0:01:53]} 39. Bb4 {[%emt 0:00:00]} Rd8 {
[%emt 0:02:04]} ({Not} 39... Rxb5 40. Rxd6+ Kf5 41. Be1 $17) 40. Be1 {[%emt 0:
00:00]} Rg8 {[%emt 0:03:35]} 41. Bb4 {[%emt 0:00:00]} Rb6 {[%emt 0:01:56]} ({
Stronger than} 41... Rxb5 42. Rxd6+ Kf5 43. Be1 $17) 42. Rxa7 $2 {[%emt 0:00:
00] Loses the game.} (42. Rxb6 $17 {was necessary.} axb6 43. Be1) 42... gxf2 {
[%emt 0:02:38]} ({Don't blunder} 42... Rxb5 $2 43. Ba3 $19) 43. Kxf2 {[%emt 0:
00:00]} (43. Ba3 Rg3 44. Kxf2) 43... Rxb5 {[%emt 0:00:32]} 44. Ba3 {[%emt 0:00:
00]} Be4 {[%emt 0:03:10] [#] aiming for ...Rg2+.} 45. Ke1 {[%emt 0:04:19]} (45.
d5+ $142 Rxd5 46. Ra4 Rg2+ 47. Ke1) 45... Rb3 {[%emt 0:06:00]} 46. d5+ {
[%emt 0:02:27]} Kf5 {[%emt 0:05:02] Black mates.} 47. Kf2 {[%emt 0:00:28]} Rg2+
{[%emt 0:01:06]} 48. Kf1 {[%emt 0:00:05]} Ra2 {[%emt 0:03:08]} 49. Bc5 {
[%emt 0:00:32]} Rh2 {[%emt 0:00:16] Weighted Error Value: White=0.60/Black=0.
10 (very precise)} 0-1